{"text_format":"2","workbook":"xlsx","n_sheets":3,"sheets":["Kemiatanar","Munka1","Munka2"],"not_rendered":{"charts":0,"images":0,"macros":0,"external_links":0,"defined_names":1,"comments":0,"pivot_tables":0},"unopened":[],"bounds":{"document_bytes":16777216,"sheet_cells":100000,"run_cost":"one","rows_first":2000,"rows_last":500,"rows_between":2000,"halvings":0,"cell_chars":16384,"cell_head_chars":4096},"cells_cut":0,"cells_raw":0,"read":"whole","date_system":"1900"}

{"sheet":"Kemiatanar","index":0,"n_rows":58,"n_cols":31,"rows_kept":58,"cut":false,"hidden":false,"merged":[[2,29,2,31],[0,0,0,1],[0,9,0,28],[1,9,1,10],[1,11,1,12],[1,13,1,14],[1,15,1,16],[1,17,1,18],[1,19,1,20],[1,21,1,22],[1,23,1,24],[1,25,1,26],[1,27,1,28]]}
["Kémia osztatlan tanári szak",{"$nulls":8},"Félévek"]
[{"$nulls":9},1,null,2,null,3,null,4,null,5,null,6,null,7,null,8,null,9,null,10]
["Kód","Tárgy(elem) elnevezése","Tí-\npus","Óra-\nszám","Kre-\ndit","Számon-\nkérés","Fél-\név","Tárgyfelelős","Előfeltétel","ó","kr","ó","kr","ó","kr","ó","kr","ó","kr","ó","kr","ó","kr","ó","kr","ó","kr","ó","kr"]
[null,"Matematika kémiatanároknak","ea+gy",4,4,"gy",1,null,null,4,4]
["KTN01G","A kémiai informatika alapjai (FKAT)","gy",2,2,"gy",1,"Peintler Gábor",null,2,2]
["KTN02E","Általános kémia (FKAT)","ea",3,4,"k",1,"Horváth Dezső",null,3,4]
["KTN02L","Általános kémiai laboratórium (FKAT)","gy",4,4,"gy",1,"Horváth Dezső",null,4,4]
["KTN02G","Kémiai számítások I. (FKAT)","gy",2,2,"gy",1,"Csapó Edit"," ",2,2]
[]
["KTN04E","Szerves kémia alapjai (MAKT)","ea",4,6,"k",2,"Mastalír Ágnes","KTN02E",null,null,4,6]
["KTN07E"," A fizikai kémia alapjai (FKAT)","ea",2,3,"k",2,"Horváth Dezső","KTN02E",null,null,2,3]
["KTN07G","Fizikai kémiai számítások (FKAT)","gy",2,2,"gy",2,"Endrődi Balázs","KTN02E, KTN02G",null,null,2,2]
[]
["KTN04L","Szerves kémiai laboratórium (MAKT)","gy",3,3,"gy",3,"Mastalír Ágnes","KTN04E",{"$nulls":4},3,3]
[null,"Fizika osztatlan tanároknak","ea",2,3,"k",3,"Hopp Béla",{"$nulls":5},2,3]
["KTN05E","A szervetlen kémia alapjai (MAKT)","ea",3,4,"k",3,"Gyurcsik Béla","KTN02E",{"$nulls":4},3,4]
["KTN05L","Szervetlen kémia laboratórium (MAKT)","gy",4,4,"gy",3,"Gyurcsik Béla","KTN02E",{"$nulls":4},4,4]
[]
["KTN07L","Fizikai és kolloidkémiai laboratórium (FKAT)","gy",3,4,"gy",4,"Schuszter Gábor","KTN07E",{"$nulls":6},3,4]
["KTN08E","Az analitikai kémia alapjai (MAKT)","ea",2,3,"k",4,"Enyedy Éva","KTN02E",{"$nulls":6},2,3]
["KTN08G","Analitikai kémiai számítások (MAKT)","gy",2,2,"gy",4,"Gyurcsik Béla","KTN02E",{"$nulls":6},2,2]
[]
["KTN08L","Analitikai kémiai laboratórium (MAKT)","gy",4,4,"gy",5,"Enyedy Éva","KTN08E",{"$nulls":8},4,4]
["KTN09E","A kémia gazdasági vonatkozásai (FKAT)","ea",2,3,"k",5,"Janáky Csaba",{"$nulls":9},2,3]
["KTN06G","Kémiai számítások II. (FKAT)","gy",2,2,"gy",5,"Musza Katalin","KTN02G",{"$nulls":8},2,2]
[]
["KTN20E","Bevezetés az elektrokémiába (FKAT)","ea",2,3,"k",6,"Endrődi Balázs","KTN07E",{"$nulls":10},2,3]
["KTN12E","Kémiai technológia (AKKT)","ea",3,4,"k",6,"Sápi András","KTN02E",{"$nulls":10},3,4]
["KTN11G","Molekulaszerkezetek leírása és szemléltetése (FKAT)","gy",2,2,"gy",6,"Czakó Gábor","KTN07E",{"$nulls":10},2,2]
["KTN10E","Hétköznapi anyagismeret (AKKT)","ea",2,3,"k",6,"Tóth Ildikó","KTN02E",{"$nulls":10},2,3]
[]
["KTN13E","Környezeti kémia és környezetvédelem (AKKT)","ea",2,3,"k",7,"Tóth Ildikó","KTN12E",{"$nulls":12},2,3]
["KTN14G","Tehetséggondozás kémiából (FKAT)","gy",2,2,"gy",7,"Peintler Gábor","KTN06G, KTN08G",{"$nulls":12},2,2]
["KTN15E","A kémia kultúrtörténete (AKKT)","ea",2,3,"k",7,"Tóth Ildikó",{"$nulls":13},2,3]
[]
["KTN16E","Bioszervetlen kémia (MAKT)","ea",2,3,"ea",8,"Gyurcsik Béla","KTN05E",{"$nulls":14},2,3]
["KTN17E","Baleseti esettanulmányok (AKKT)","ea",2,3,"k",8,"Kukovecz  Ákos","KTN12E",{"$nulls":14},2,3]
["KTN18E","Bioszerves kémia (MAKT)","ea",2,3,"k",8,"Mastalír Ágnes","KTN04E",{"$nulls":14},2,3]
["KTN19G","Kémiai üzemlátogatás (AKKT)","gy",null,2,"gy",8,"Kozma Gábor","KTN12E",{"$nulls":15},2]
[]
["KTN21G","Haladó szerves kémiai ismeretek (MAKT)","gy",2,2,"gy",9,"Wölfling János","KTN04E",{"$nulls":16},2,2]
["KTN22G","Integrált természettudomány","gy",2,2,"gy",9,"Musza Katalin",{"$nulls":17},2,2]
["KTN23G","Terepgyakorlat kémiatanároknak","gy",null,2,"gy",9,"Musza Katalin","KTNM2L",{"$nulls":17},2]
["KTN801G","Környezeti fenntarthatóság az iskolában","ea",2,3,"k",9,"Musza Katalin","KTNM3L",{"$nulls":16},2,3]
[]
[null,"Szabadon választható",null,4,4]
["KTN24G","Szakdolgozati előkészítés",null,2,2]
["KTN25G","Szakdolgozat",null,2,2]
[null,null,null,{"$f":"SUM(D4:D48)","v":85},{"$f":"SUM(E4:E48)","v":107},{"$nulls":4},{"$f":"SUM(J4:J48)","v":15},16,8,11,12,14,7,9,8,9,9,12,6,8,6,11,6,9,0,0,null,{"$f":"SUM(K49,M49,O49,Q49,S49,U49,W49,AA49,AC49,Y49)","v":99}]
[{"$nulls":10},13,null,13,null,13,null,11,null,11,null,11,null,9,null,9,null,9,null,0,null,{"$f":"SUM(K50:AC50)","v":99}]
[]
[null,"Szakmódszertani tárgyak (12 kr.) a tanári felkészítés elemei"]
["KTNM1E","Kémia tantárgypedagógia","ea",1,2,null,4,"Musza Katalin",{"$nulls":7},1,2]
["KTNM2L","Kémiai kísérletek 7-8. osztályban","gy",2,2,null,5,"Musza Katalin","KTNM1E",{"$nulls":8},2,2]
["KTNM3L","Kémiai kísérletek a középiskolában","gy",2,2,null,6,"Musza Katalin","KTNM2L",{"$nulls":10},2,2]
["KTNM4G","Kooperatív tanulás kémiaórán, kollaborációs tér","gy",2,2,null,7,"Musza Katalin","KTNM3L",{"$nulls":12},2,2]
["KTNM5G","Gondolkodtató kémiatanítás","gy",2,2,null,8,"Musza Katalin","KTNM4G",{"$nulls":14},2,2]
[null,"ÖSZGY kísérő szeminárium","szem",2,2,null,10,"Musza Katalin",{"$nulls":19},2,2]

{"sheet":"Munka1","index":1,"n_rows":3,"n_cols":27,"rows_kept":3,"cut":false,"hidden":false,"merged":[]}
[]
[{"$nulls":23},9,null,10]
[{"$nulls":23},"ó","kr","ó","kr"]

{"sheet":"Munka2","index":2,"n_rows":0,"n_cols":0,"rows_kept":0,"cut":false,"hidden":false,"merged":[]}